bitfinex-derivatives/quotes_ETHF0:USTF0_20250616
["timestamp","ask_amount","ask_price","bid_price","bid_amount"]
[1750092155001,0.06737406,2641.3,2641.2,6.01105529]
[1750092155604,11.41125762,2642.0,2641.4,1.89218]
[1750092155905,1.68946589,2641.9,2641.8,0.75674]
[1750092156505,0.93269589,2641.9,2641.8,0.75674]
[1750092156802,0.93269589,2641.9,2641.8,1.38764]
[1750092157305,1.68943589,2641.9,2641.8,1.38764]
[1750092157700,0.93269589,2641.9,2641.8,1.38764]
[1750092158005,1.68943589,2641.9,2641.8,1.38764]
[1750092158504,0.93269589,2641.9,2641.8,5.34676927]
[1750092158802,23.83565,2642.2,2642.0,1.89178]
[1750092159106,23.83565,2642.2,2642.1,0.75668]
[1750092159405,24.76702612,2642.2,2642.1,0.75668]
[1750092159998,0.93137612,2642.2,2642.1,0.75668]
[1750092160310,24.76450582,2642.2,2642.1,0.75668]
[1750092160504,24.00785582,2642.2,2642.1,0.75668]
[1750092160705,23.077,2642.2,2642.1,0.75668]
[1750092160905,23.077,2642.2,2642.0,3.2078]
[1750092161206,0.75668,2642.1,2642.0,3.2078]
[1750092161399,0.75677,2641.9,2641.8,0.75675]
[1750092162908,0.75669,2642.1,2642.0,0.75671]
[1750092163106,24.75901542,2642.1,2642.0,0.75671]
[1750092163810,1.68701542,2642.1,2642.0,0.75671]
[1750092164007,24.76401542,2642.1,2642.0,0.75671]
[1750092165810,1.68701542,2642.1,2642.0,0.75671]
[1750092166012,24.75901542,2642.1,2642.0,0.75671]
[1750092166714,23.82869,2642.1,2642.0,0.75671]
[1750092167414,23.072,2642.1,2642.0,4.71583927]
[1750092167811,0.75665,2642.3,2642.0,7.16692927]
[1750092168011,0.75663,2642.3,2642.2,4.71575927]
[1750092168204,23.82763,2642.3,2642.2,4.71575927]
[1750092168405,0.75671,2642.1,2642.0,0.75667]
[1750092169214,0.75674,2642.0,2641.9,0.75671]
[1750092171207,0.82407406,2642.1,2642.0,0.75671]
[1750092173311,0.06737406,2642.1,2642.0,4.71583927]
[1750092173512,0.82405406,2642.1,2642.0,4.71583927]
[1750092174315,0.06737406,2642.1,2642.0,4.71583927]
[1750092174707,0.82405406,2642.1,2642.0,4.71583927]
[1750092175013,0.06737406,2642.1,2642.0,4.71583927]
[1750092176312,0.06737406,2642.1,2642.0,5.37263927]
[1750092177216,0.06737406,2642.1,2642.0,8.58043927]
[1750092180319,0.06737406,2642.1,2642.0,9.82923927]
[1750092180510,9.7969,2642.6,2642.5,0.75657]
[1750092180715,33.15831305,2642.6,2642.5,0.75657]
[1750092181020,33.91485305,2642.6,2642.5,0.75657]
[1750092181219,10.08931305,2642.6,2642.5,4.71569927]
[1750092181421,4.13831305,2642.6,2642.5,4.71569927]
[1750092181921,3.96425,2643.0,2642.6,1.89132]
[1750092182124,0.75641,2643.1,2643.0,0.7564]
[1750092182325,0.9303117,2643.1,2643.0,0.75642]
[1750092182628,3.2078,2643.6,2643.3,0.75634]
[1750092182917,3.2078,2643.6,2643.4,4.71543927]
[1750092182918,0.92988372,2643.5,2643.4,4.71543927]
[1750092183625,3.2078,2643.6,2643.5,0.75628]
[1750092184322,3.2078,2643.6,2643.2,1.2931]
[1750092184517,0.75634,2643.3,2643.2,0.6773]
[1750092184712,0.75642,2643.0,2642.9,0.75645]
[1750092184926,0.75641,2643.1,2642.9,0.75645]
[1750092185127,0.75642,2643.1,2642.9,0.75645]
[1750092185323,0.75648,2642.8,2642.7,1.3822]
[1750092185524,3.95912927,2642.9,2642.6,0.75652]
[1750092185729,0.75654,2642.6,2642.5,3.21348602]
[1750092186029,1.68451695,2642.6,2642.5,0.00568602]
[1750092186434,14.34342028,2642.6,2642.5,0.00568602]
[1750092186635,14.34342028,2642.6,2641.9,3.95912927]
[1750092186636,18.68604028,2642.6,2642.1,0.75667]
[1750092186930,18.68604028,2642.6,2641.8,10.4149]
[1750092186931,0.75663,2642.3,2642.2,0.75664]
[1750092188136,0.75668,2642.1,2642.0,0.76234515]
[1750092188927,0.75668,2642.1,2642.0,0.00567515]
[1750092190735,0.75668,2642.1,2642.0,0.76238515]
[1750092191132,1.68498527,2642.1,2642.0,0.76238515]
[1750092191531,1.68498527,2642.1,2642.0,0.00567515]
[1750092191836,1.68498527,2642.1,2641.4,4.5151]
[1750092191837,33.42141744,2642.1,2641.4,4.5151]
[1750092192031,0.75685,2641.5,2641.4,3.2078]
[1750092192332,0.75691,2641.3,2641.2,2.04871]
[1750092192544,0.75694,2641.2,2641.1,3.2078]
[1750092192736,1.89211,2641.6,2641.0,6.70697]
[1750092192737,0.75697,2641.1,2641.0,6.70697]
[1750092193038,0.75696,2641.2,2641.1,0.75695]
[1750092193633,0.75699,2641.1,2641.0,0.75698]
[1750092193837,0.75703,2640.9,2640.8,4.60250515]
[1750092194038,0.75702,2641.0,2640.9,0.75701]
[1750092194345,0.75703,2640.9,2640.8,4.60250515]
[1750092195042,0.00567515,2641.1,2641.0,0.757]
[1750092195540,0.00567515,2641.1,2641.0,8.23739217]
[1750092195750,3.96463,2641.6,2641.5,0.75685]
[1750092196043,3.96463,2641.6,2641.1,1.89238]
[1750092196044,0.7569,2641.4,2641.3,0.75689]
[1750092196346,0.75687,2641.5,2641.4,0.75687]
[1750092196645,0.75685,2641.6,2641.5,0.75685]
[1750092196841,2.63825981,2641.7,2641.6,0.75683]
[1750092197045,1.39815981,2641.7,2641.6,0.75683]
[1750092197446,0.64134981,2641.7,2641.6,0.75683]
[1750092197635,0.00564981,2641.7,2641.6,0.75683]
[1750092199646,0.00564981,2641.7,2641.6,2.08993]
[1750092200846,0.00564981,2641.7,2641.6,0.75683]
[1750092201848,0.76244981,2641.7,2641.6,0.75683]
[1750092202044,0.75683,2641.6,2641.5,0.75683]
[1750092202245,0.76245981,2641.7,2641.6,0.75683]
[1750092203349,0.00564981,2641.7,2641.6,0.75683]
[1750092206251,0.76244981,2641.7,2641.6,0.75683]
[1750092206445,0.00564981,2641.7,2641.6,0.75683]
[1750092210361,0.00564981,2641.7,2641.6,2.01493]
[1750092210764,0.00564981,2641.7,2641.6,0.75683]
[1750092212656,0.76244981,2641.7,2641.6,0.75683]
[1750092212857,0.00564981,2641.7,2641.6,0.75683]
[1750092214768,0.07302387,2641.7,2641.6,0.75683]
[1750092217566,0.07302387,2641.7,2641.6,4.71455014]
[1750092219269,0.07302387,2641.7,2641.6,6.01215014]
[1750092219865,3.2078,2642.2,2641.6,5.25532014]
[1750092220068,7.37191,2642.4,2642.1,3.95772014]
[1750092220273,6.6153,2642.4,2642.3,0.75663]
[1750092220462,6.90954075,2642.4,2642.3,0.75663]
[1750092220971,7.66614075,2642.4,2642.3,0.75663]
[1750092221166,0.93054075,2642.4,2642.3,0.75663]
[1750092221670,1.68714075,2642.4,2642.3,0.75663]
[1750092221869,0.93054075,2642.4,2642.3,0.75663]
[1750092222262,1.68714075,2642.4,2642.3,0.75663]
[1750092222871,1.6867298,2642.4,2642.3,0.75663]
[1750092223168,0.9301298,2642.4,2642.3,0.75663]
[1750092223359,0.6528,2642.7,2642.6,0.75654]
[1750092223562,1.40931,2642.7,2642.6,0.75654]
[1750092224062,0.75657,2642.5,2642.4,0.00567515]
[1750092224264,0.7567,2642.2,2642.1,0.75667]
[1750092224467,0.75664,2642.3,2642.2,0.75666]
[1750092224772,0.75664,2642.3,2642.0,1.89178]
[1750092224773,2.65562,2642.4,2642.3,0.75663]
[1750092224974,3.58538626,2642.4,2642.3,0.75663]
[1750092225170,0.92976626,2642.4,2642.3,0.75663]
[1750092225370,29.90523515,2642.6,2642.5,0.75657]
[1750092225570,30.83537349,2642.6,2642.5,0.75657]
[1750092225773,32.11457349,2642.6,2642.5,0.75657]
[1750092229580,0.75665,2642.3,2642.2,0.75661]
[1750092229781,0.75666,2642.2,2642.1,0.00567515]
[1750092229975,3.32536,2642.2,2642.1,0.00567515]
[1750092230171,4.25514897,2642.2,2642.1,0.00567515]
[1750092230378,10.23414897,2642.2,2642.1,0.00567515]
[1750092230976,10.23414897,2642.2,2642.1,0.76235515]
[1750092231375,10.23414897,2642.2,2642.1,0.00567515]
[1750092232971,17.71320191,2642.2,2642.1,0.00567515]
[1750092233478,20.92100191,2642.2,2642.1,0.00567515]
[1750092233780,0.75674,2641.9,2641.8,0.75674]
[1750092233977,23.91574,2641.9,2641.8,0.75674]
[1750092234175,24.84552897,2641.9,2641.8,0.75674]
[1750092234472,24.08878897,2641.9,2641.8,0.75674]
[1750092234680,24.84552897,2641.9,2641.8,0.75674]
[1750092237780,24.08878897,2641.9,2641.6,0.00567515]
[1750092238083,8.23585294,2641.7,2641.6,0.76247515]
[1750092238281,7.98739,2641.8,2641.7,0.7568]
[1750092238580,7.98739,2641.8,2641.6,0.76248515]
[1750092238581,0.7568,2641.7,2641.6,0.76248515]
[1750092238783,1.6906205,2641.7,2641.6,0.76248515]
[1750092239079,2.9216205,2641.7,2641.6,0.00567515]
[1750092239278,3.5973205,2641.7,2641.6,0.00567515]
[1750092239480,3.5973205,2641.7,2641.6,0.76250515]
[1750092241683,3.5973205,2641.7,2641.6,0.00567515]
[1750092241875,0.75691,2641.4,2641.3,0.75687]
[1750092242477,0.75691,2641.4,2641.0,0.6302]
[1750092242478,0.75697,2641.1,2641.0,1.38717]
[1750092242775,0.757,2641.0,2640.9,0.75702]
[1750092242977,0.75703,2640.9,2640.8,2.25152671]
[1750092243179,25.17003,2640.9,2640.8,3.00858671]
[1750092243374,26.10399654,2640.9,2640.8,0.75706]
[1750092243776,23.147,2640.9,2640.7,0.00567515]
[1750092243975,0.75706,2640.8,2640.7,0.00567515]
[1750092244381,0.75706,2640.8,2640.7,0.76276515]
[1750092244681,0.75706,2640.8,2640.7,0.00567515]
[1750092244883,2.91622617,2640.8,2640.7,0.00567515]
[1750092245084,3.53632617,2640.8,2640.7,0.00567515]
[1750092245479,2.60336,2640.8,2640.7,0.00567515]
[1750092247286,0.7572,2640.3,2640.2,3.96502]
[1750092247596,23.9012,2640.3,2640.2,3.96502]
[1750092248188,23.144,2640.3,2640.2,3.96502]
[1750092248780,23.9012,2640.3,2640.2,3.2078]
[1750092248976,0.75723,2640.2,2640.1,0.75724]
[1750092249182,4.71970609,2640.2,2640.1,0.75724]
[1750092249384,23.90122,2640.3,2640.2,0.75723]
[1750092249888,23.144,2640.3,2640.2,0.75723]
[1750092250683,27.10647609,2640.3,2640.2,0.75723]
[1750092250991,27.86367609,2640.3,2640.2,0.75723]
[1750092251691,35.31427609,2640.3,2639.7,0.6224]
[1750092251987,35.31427609,2640.3,2639.4,3.2078]
[1750092251988,0.75743,2639.6,2639.5,0.75741]
[1750092252285,0.75743,2639.5,2639.4,0.6534]
[1750092252488,0.75754,2639.2,2639.1,0.75753]
[1750092252678,0.75754,2639.2,2639.0,3.8553]
[1750092252679,27.86897609,2639.3,2639.2,0.75752]
[1750092252884,23.9065,2639.3,2639.2,0.75752]
[1750092253088,23.149,2639.3,2639.2,0.75752]
[1750092253888,0.00567515,2639.4,2639.3,0.75749]
[1750092254186,0.00567515,2639.4,2639.3,3.96529]
[1750092254789,0.00567515,2639.4,2639.3,0.75749]
[1750092260683,0.07304921,2639.4,2639.3,0.75749]
[1750092260991,0.83050921,2639.4,2639.3,0.75749]
[1750092261988,0.07304921,2639.4,2639.3,0.75749]
[1750092264092,0.83050921,2639.4,2639.3,0.75749]
[1750092264293,0.07304921,2639.4,2639.3,0.75749]
[1750092264593,0.83050921,2639.4,2639.3,0.75749]
[1750092264989,0.07304921,2639.4,2639.3,0.75749]
[1750092265194,0.75753,2639.3,2639.2,0.75749]
[1750092265991,0.75749,2639.3,2639.2,0.75749]
[1750092267692,1.50622921,2639.4,2639.3,0.75749]
[1750092268084,1.50622921,2639.4,2639.1,1.89383]
[1750092268085,1.89375,2639.3,2639.0,3.2078]
[1750092268283,0.75757,2639.0,2638.9,0.65907515]
[1750092268994,0.75757,2639.0,2638.9,1.41667515]
[1750092270593,9.817,2639.2,2638.9,0.65907515]
[1750092270788,6.75153,2639.2,2639.1,0.75754]
[1750092270989,30.82837337,2639.2,2639.1,0.75754]
[1750092271189,0.75757,2639.1,2639.0,0.75755]
[1750092271496,0.75757,2639.0,2638.9,1.41665515]
[1750092271696,0.75757,2639.0,2638.9,0.00567515]
[1750092271898,0.75757,2639.0,2638.9,0.76327515]
[1750092272390,0.75757,2639.0,2638.9,0.00567515]
[1750092272998,0.75757,2639.0,2638.9,0.76327515]
[1750092273593,9.2018,2639.2,2638.9,0.00567515]
[1750092273792,0.75757,2639.0,2638.9,0.76325515]
[1750092273991,0.75757,2639.0,2638.9,0.76327515]
[1750092274193,23.89356,2639.1,2639.0,0.75757]
[1750092274391,24.83021872,2639.1,2639.0,0.75757]
[1750092274592,0.75757,2639.0,2638.9,0.00567515]
[1750092275404,1.69485547,2639.0,2638.9,0.00567515]
[1750092275991,0.75775,2638.4,2638.3,0.75776]
[1750092278194,0.75783,2638.3,2638.2,0.6341]
[1750092278503,0.75782,2638.4,2638.3,0.75783]
[1750092278705,0.75783,2638.3,2638.2,1.39194]
[1750092279510,0.75783,2638.4,2638.3,0.75781]
[1750092280199,6.73983,2638.4,2638.3,0.75781]
[1750092281396,7.67859048,2638.4,2638.3,0.75781]
[1750092281605,0.75784,2638.3,2638.2,1.39195]
[1750092281897,23.89784,2638.3,2638.2,0.6341]
[1750092282098,0.75787,2638.2,2638.1,0.00378346]
[1750092282396,12.40786708,2638.2,2638.1,0.00378346]
[1750092282592,14.32566708,2638.2,2638.1,0.00378346]
[1750092283199,14.69524712,2638.2,2638.1,0.00378346]
[1750092283900,0.75804,2637.7,2637.6,0.75802]
[1750092284103,0.75804,2637.6,2637.5,2.01836]
[1750092284302,0.75804,2637.6,2637.5,1.2603]
[1750092284503,0.75804,2637.6,2637.5,1.37897]
[1750092284705,0.75804,2637.6,2637.5,0.6209]
[1750092284900,0.75804,2637.6,2637.5,1.37897]
[1750092285411,0.75802,2637.7,2637.6,0.75802]
[1750092286300,29.05278613,2637.8,2637.7,0.75801]
[1750092286597,29.99040005,2637.8,2637.7,0.75801]
[1750092286802,4.59478613,2637.8,2637.7,0.75801]
[1750092287108,0.75826,2636.9,2636.8,0.75825]
[1750092287300,0.75826,2636.9,2636.6,0.6423]
[1750092287301,0.7583,2636.7,2636.6,0.6423]
[1750092287503,0.75832,2636.6,2636.5,0.6282]
[1750092287697,23.193,2636.6,2636.2,3.96623]
[1750092288003,9.1918,2636.5,2635.8,5.10417]
[1750092288212,0.76408613,2636.4,2635.9,1.2705]
[1750092288506,0.76408613,2636.4,2636.2,0.75843]
[1750092288710,0.00568613,2636.4,2636.2,0.75843]
[1750092289011,0.76408613,2636.4,2636.2,0.75843]
[1750092289402,0.76408613,2636.4,2636.3,0.75841]
[1750092289602,0.00568613,2636.4,2636.2,0.75841]
[1750092289803,0.75841,2636.3,2636.2,0.75841]
[1750092290008,0.76408613,2636.4,2636.3,0.75841]
[1750092290509,0.00568613,2636.4,2636.3,0.75841]
[1750092290904,5.99068613,2636.4,2636.3,3.96621]
[1750092291305,5.99068613,2636.4,2636.3,0.75841]
[1750092291708,0.00568613,2636.4,2636.3,0.75841]
[1750092291910,0.75842,2636.3,2636.2,0.75841]
[1750092292110,0.00568613,2636.4,2636.1,0.75845]
[1750092292111,0.75845,2636.2,2636.1,0.75845]
[1750092292303,0.75844,2636.3,2636.2,0.75843]
[1750092292504,0.75845,2636.2,2636.1,0.75845]
[1750092292702,0.75845,2636.2,2635.4,3.2078]
[1750092292703,1.89618,2636.1,2635.4,3.2078]
[1750092292906,7.50335316,2635.8,2635.5,0.75862]
[1750092293213,23.312,2635.7,2635.6,0.75861]
[1750092293512,24.07058,2635.7,2635.6,0.75861]
[1750092293717,23.312,2635.7,2635.6,0.75861]
[1750092294214,23.312,2635.7,2634.8,1.89707]
[1750092294509,3.2078,2635.4,2635.3,0.7587]
[1750092294705,5.986,2635.6,2635.5,0.75864]
[1750092294899,3.2078,2635.7,2635.6,0.75861]
[1750092295107,5.986,2635.6,2635.0,2.53245]
[1750092295308,3.2078,2635.4,2635.0,0.6355]
[1750092295609,23.354,2635.3,2635.0,0.6355]
[1750092295914,23.354,2635.3,2635.2,0.75873]
[1750092296219,0.75874,2635.2,2635.1,0.75874]
[1750092296607,24.11272,2635.3,2635.2,0.75873]
[1750092297002,9.1948,2635.8,2635.2,3.2078]
[1750092297207,23.385,2635.7,2635.6,0.75861]
[1750092297920,24.14358,2635.7,2635.6,0.75861]
[1750092298215,23.385,2635.7,2635.6,0.75861]
[1750092298416,3.2078,2635.8,2635.7,0.75858]
[1750092298615,32.5848,2635.8,2635.7,0.75858]
[1750092298814,3.2078,2635.8,2635.7,0.75858]
[1750092299015,26.5948,2635.8,2635.3,1.89675]
[1750092299316,34.09815316,2635.8,2635.4,1.2849]
[1750092299515,0.75864,2635.6,2635.5,0.75863]
[1750092299713,34.09815316,2635.8,2635.0,1.89697]
[1750092299917,12.01545316,2635.5,2634.9,1.2841]
[1750092300105,0.75871,2635.3,2635.2,0.7587]
[1750092300419,29.393,2635.3,2634.4,3.2078]
[1750092300613,10.71115316,2634.7,2634.4,0.75895]
[1750092300810,10.71115316,2634.7,2634.3,0.75899]
[1750092300811,29.444,2634.6,2634.3,0.75899]
[1750092301006,30.7483,2634.6,2634.5,0.75893]
[1750092301206,5.988,2634.6,2634.2,2.52964]
[1750092301415,29.446,2634.6,2634.5,0.75891]
[1750092301614,0.6697,2634.9,2634.4,1.8974]
[1750092301812,0.00568613,2635.1,2635.0,0.75878]
[1750092302012,0.00568613,2635.1,2634.7,5.10498]
[1750092302013,29.45968613,2635.1,2634.9,0.7588]
[1750092302315,29.45968613,2635.1,2635.0,0.75878]
[1750092302716,5.99368613,2635.1,2635.0,0.75878]
[1750092303021,30.22344613,2635.1,2635.0,0.75878]
[1750092303214,0.75878,2635.0,2634.9,1.3876]
[1750092303407,0.75878,2635.0,2634.9,0.6288]
[1750092303614,41.04192355,2635.1,2634.4,6.34347]
[1750092303809,1.3069,2635.0,2634.8,0.75883]
[1750092304014,0.75885,2634.8,2634.7,0.75885]
[1750092304215,1.3069,2635.0,2634.5,0.6288]
[1750092304514,0.75885,2634.8,2634.7,0.75884]
[1750092304714,23.483,2634.9,2634.5,0.6288]
[1750092304915,0.75887,2634.8,2634.7,0.75886]
[1750092305410,23.483,2634.9,2634.5,0.6288]
[1750092305615,0.75884,2634.8,2634.7,0.75886]
[1750092305924,3.2078,2634.8,2634.5,0.6288]
[1750092306214,0.75895,2634.5,2634.4,0.75894]
[1750092306419,23.475,2634.5,2634.4,0.75894]
[1750092307216,23.475,2634.5,2634.3,0.06737406]
[1750092307421,3.96676,2634.4,2634.3,0.06737406]
[1750092307819,5.31866,2634.4,2634.3,0.06737406]
[1750092308013,3.96676,2634.4,2634.3,0.06737406]
[1750092308218,33.60476,2634.4,2634.3,0.06737406]
[1750092308716,6.167,2634.4,2634.3,0.82635406]
[1750092308917,29.641,2634.4,2634.3,0.82635406]
[1750092309317,33.60776,2634.4,2634.3,0.06737406]
[1750092309717,33.60776,2634.4,2634.3,0.82635406]
[1750092310018,3.96676,2634.4,2634.3,0.82635406]
[1750092310226,33.62776,2634.4,2634.3,0.82635406]
[1750092310725,33.62776,2634.4,2634.3,0.06737406]
[1750092311929,33.62776,2634.4,2633.8,1.2774]
[1750092311930,0.7591,2633.9,2633.8,1.2774]
[1750092312517,0.7591,2633.9,2633.8,2.03651]
[1750092312727,24.25009,2634.0,2633.9,0.7591]
[1750092312925,23.491,2634.0,2633.4,1.89811]
[1750092313130,3.2078,2633.8,2633.7,0.75914]
[1750092313327,3.96696,2633.8,2633.7,0.75914]
[1750092313725,3.2078,2633.8,2633.7,0.75914]
[1750092313925,3.2078,2634.1,2633.7,1.8979]
[1750092314125,23.487,2634.2,2633.9,5.10556]
[1750092314429,23.487,2634.2,2634.1,0.75904]
[1750092314931,0.75904,2634.1,2634.0,3.33974]
[1750092315130,0.75916,2633.7,2633.6,3.96697]
[1750092315630,0.75915,2633.8,2633.7,0.75913]
[1750092315936,6.169,2634.0,2633.9,0.7591]
[1750092316124,29.669,2634.0,2633.9,0.7591]
[1750092316427,30.42807,2634.0,2633.9,0.7591]
[1750092316830,29.669,2634.0,2633.9,0.7591]
[1750092317032,1.89776,2633.9,2633.5,0.6667]
[1750092317228,1.2738,2633.9,2633.6,0.75918]
[1750092317530,0.75917,2633.7,2633.6,0.75917]
[1750092317726,0.75919,2633.6,2633.5,0.6667]
[1750092317923,23.505,2633.7,2633.6,0.75919]
[1750092318130,24.26416,2633.7,2633.6,0.75919]
[1750092319037,9.9912,2634.0,2633.9,0.7591]
[1750092319236,33.63287,2634.0,2633.9,0.7591]
[1750092319430,33.63287,2634.0,2633.5,0.6667]
[1750092319431,0.75911,2633.9,2633.8,0.75911]
[1750092320035,0.75915,2633.8,2633.7,0.75914]
[1750092320437,0.75912,2633.9,2633.8,0.75911]
[1750092321632,3.96688,2634.0,2633.9,0.82647406]
[1750092322536,4.91477601,2634.0,2633.9,0.82647406]
[1750092323433,4.91477601,2634.0,2633.9,0.06737406]
[1750092323630,4.91477601,2634.0,2633.9,0.82647406]
[1750092323831,4.91477601,2634.0,2633.9,0.06737406]
[1750092324738,6.26547601,2634.0,2633.9,0.06737406]
[1750092324942,13.79594147,2634.0,2633.9,0.06737406]
[1750092325335,13.79594147,2634.0,2633.3,0.629]
[1750092325336,1.89782,2633.9,2633.3,0.629]
[1750092325537,0.75924,2633.4,2633.3,0.629]
[1750092326437,0.75927,2633.3,2633.2,3.2078]
[1750092326936,0.75933,2633.1,2633.0,1.2899]
[1750092327235,0.75933,2633.1,2633.0,0.6549]
[1750092327430,0.75936,2633.0,2632.9,0.75937]
[1750092328139,0.75934,2633.1,2633.0,0.75934]
[1750092328440,7.53046546,2633.1,2632.7,1.39113]
[1750092328743,0.75941,2632.8,2632.7,1.39113]
[1750092328941,24.2564,2632.9,2632.8,0.75941]
[1750092329237,23.497,2632.9,2632.6,3.2078]
[1750092329436,24.2564,2632.9,2632.6,3.2078]
[1750092329634,23.497,2632.9,2632.8,0.75941]
[1750092330533,23.497,2632.9,2632.4,1.2561]
[1750092330742,0.75945,2632.7,2632.6,0.75947]
[1750092331040,10.73826546,2632.8,2632.4,1.2561]
[1750092331242,0.75948,2632.6,2632.5,0.75949]
[1750092331454,29.658,2632.6,2632.0,3.2078]
[1750092331645,7.53046546,2632.5,2632.0,4.476]
[1750092331841,0.75962,2632.1,2632.0,3.2078]
[1750092332046,0.75962,2632.1,2632.0,0.75964]
[1750092332047,24.24862,2632.1,2632.0,0.75964]
[1750092332243,0.75964,2632.0,2631.7,0.6244]
[1750092332451,7.53046546,2632.0,2631.8,0.75969]
[1750092332746,0.00569703,2632.1,2632.0,0.75964]
[1750092332954,0.00569703,2632.1,2632.0,3.96744]
[1750092334249,0.00569703,2632.1,2632.0,0.75964]
[1750092335242,23.52369703,2632.1,2632.0,0.75964]
[1750092335659,32.91949703,2632.1,2632.0,0.75964]
[1750092335954,0.75961,2631.9,2631.8,0.75963]
[1750092336350,0.75963,2631.8,2631.4,3.838]
[1750092336546,29.762,2631.7,2631.4,0.6807]
[1750092336750,30.52168,2631.7,2631.5,0.7597]
[1750092337055,30.52168,2631.7,2631.6,0.75969]
[1750092337056,29.762,2631.7,2631.6,0.75969]
[1750092337254,26.7898,2631.7,2631.1,3.2078]
[1750092337447,23.582,2631.7,2631.6,0.75969]
[1750092337844,23.582,2631.7,2631.2,1.3566]
[1750092338154,0.7597,2631.6,2631.5,0.75971]
[1750092338458,0.75971,2631.6,2631.4,0.75973]
[1750092338845,25.61298,2631.7,2631.5,0.75971]
[1750092339055,6.8447,2631.8,2631.7,0.75966]
[1750092339255,29.799,2631.8,2631.7,0.75966]
[1750092339555,29.799,2631.8,2631.6,0.75966]
[1750092339745,3.2078,2631.7,2631.1,4.5197]
[1750092339955,0.75981,2631.2,2631.1,3.96763]
[1750092340152,23.622,2631.2,2631.1,0.75984]
[1750092340451,6.189,2631.3,2631.2,0.75981]
[1750092340648,2.6109,2631.8,2631.7,0.75966]
[1750092340849,6.189,2631.9,2631.5,1.89931]
[1750092341055,6.189,2631.9,2631.7,0.75966]
[1750092341056,23.623,2631.8,2631.7,0.75966]
[1750092341257,24.38263,2631.8,2631.7,0.75966]
[1750092341450,23.623,2631.8,2631.7,0.75966]
[1750092341648,0.00569703,2632.1,2632.0,0.75958]
[1750092342055,0.00569703,2632.1,2632.0,3.96738]
[1750092342250,0.00569703,2632.1,2632.0,11.49784546]
[1750092342554,0.00569703,2632.1,2632.0,3.96738]
[1750092342753,0.00569703,2632.1,2632.0,0.75958]
[1750092343953,0.00569703,2632.1,2631.7,3.2078]
[1750092344150,0.75969,2631.7,2631.6,0.75968]
[1750092344351,0.75969,2631.6,2631.5,1.4129]
[1750092345655,0.75979,2631.4,2631.3,0.75977]
[1750092346058,24.43177,2631.4,2631.3,0.75978]
[1750092346560,0.75972,2631.6,2631.5,0.75972]
[1750092346760,30.61772,2631.6,2631.5,0.75972]
[1750092347661,29.858,2631.6,2631.5,0.75972]
[1750092348063,0.75968,2631.7,2631.6,0.75969]
[1750092348560,0.75963,2631.9,2631.8,0.75964]
[1750092348756,0.00569703,2632.1,2631.6,5.10703]
[1750092348954,0.00569703,2632.1,2631.7,1.9626]
[1750092349265,0.75964,2631.9,2631.8,0.75962]
[1750092349455,24.44426703,2632.1,2632.0,0.75958]
[1750092349862,23.68469703,2632.1,2632.0,0.75958]
[1750092350055,0.00569703,2632.1,2632.0,0.75958]
[1750092350458,0.00569703,2632.1,2632.0,2.06688]
[1750092352551,0.00569703,2632.1,2631.6,3.8543]
[1750092352859,0.00569703,2632.1,2632.0,0.75958]
[1750092353170,0.75961,2632.0,2631.9,0.75959]
[1750092353660,0.00569703,2632.1,2632.0,0.75958]
[1750092353860,0.76524703,2632.1,2632.0,0.75958]
[1750092354058,0.00569703,2632.1,2632.0,0.75958]
[1750092354765,0.76524703,2632.1,2632.0,0.75958]
[1750092355063,0.00569703,2632.1,2632.0,0.75958]
[1750092355260,0.76524703,2632.1,2632.0,0.75958]
[1750092355857,0.75963,2631.9,2631.8,0.7596]
[1750092356360,0.75966,2631.7,2631.6,3.8543]
[1750092356660,0.75966,2631.7,2631.6,4.61399]
[1750092357065,0.75966,2631.7,2631.6,3.8543]
[1750092357267,0.75966,2631.7,2631.6,3.2078]
[1750092357457,0.75972,2631.6,2631.5,0.75969]
[1750092357661,0.75975,2631.4,2631.3,0.71427406]
[1750092357864,0.75975,2631.4,2631.3,0.06737406]
[1750092358264,2.72575,2631.4,2631.3,0.06737406]
[1750092358963,5.93355,2631.4,2631.3,0.06737406]
[1750092359965,6.88549163,2631.4,2631.3,0.06737406]
[1750092360355,6.88549163,2631.4,2630.4,3.2078]
[1750092360356,1.89962,2631.1,2630.4,3.2078]
[1750092360563,0.75994,2630.8,2630.4,3.2078]
[1750092360762,23.69,2630.7,2630.4,3.2078]
[1750092361166,0.76001,2630.5,2630.4,3.2078]
[1750092361371,0.76001,2630.5,2630.4,3.96784]
[1750092361766,23.69569703,2630.7,2630.6,0.75998]
[1750092362162,6.191,2631.1,2630.6,5.0]
[1750092362369,6.191,2631.1,2630.8,3.2078]
[1750092362569,6.95086,2631.1,2631.0,0.75987]
[1750092362966,6.95086,2631.1,2630.9,0.75988]
[1750092362967,0.75988,2631.0,2630.9,0.75988]
[1750092364069,0.75989,2630.9,2630.8,0.6151]
[1750092364265,0.75992,2630.8,2630.7,1.39382703]
[1750092364983,23.724,2630.9,2630.8,0.75992]
[1750092365369,24.48389,2630.9,2630.8,0.75992]
[1750092365767,0.00569703,2631.2,2630.7,0.63389703]
[1750092365974,30.79785,2631.1,2631.0,0.75984]
[1750092366468,0.75989,2631.0,2630.8,4.438]
[1750092366770,0.75989,2631.0,2630.9,0.75988]
[1750092367163,30.038,2631.1,2630.8,3.2078]
[1750092367164,0.7599,2630.9,2630.8,3.2078]
[1750092367365,0.75992,2630.8,2630.7,0.00569703]
[1750092367569,2.03632,2630.8,2630.7,0.00569703]
[1750092367769,30.80992,2630.8,2630.7,0.00569703]
[1750092367971,33.35062,2630.8,2630.7,0.00569703]
[1750092369082,3.2078,2631.1,2630.7,0.00569703]
[1750092369373,0.75989,2631.0,2630.9,0.75987]